fUSD/lending_fUSD_20251212
["ID","MTS","AMOUNT","RATE_DAILY","PERIOD"]
[398347616,1765538158032,-2147.02,0.00042465,30]
[398347617,1765538158043,-1715.19,0.00042465,30]
[398347618,1765538158053,-594.01,0.00042465,30]
[398347619,1765538158064,-500.28,0.00042465,30]
[398347620,1765538158075,-1740.0,0.00042465,30]
[398347621,1765538158086,-567.29,0.00042465,30]
[398347622,1765538158097,-500.0,0.00042465,30]
[398347623,1765538158108,-633.47,0.00042465,30]
[398347624,1765538158119,-2330.09,0.00042465,30]
[398347625,1765538158130,-527.63,0.00042465,30]
[398347626,1765538158141,-563.14,0.00042465,30]
[398347627,1765538158152,-1444.41,0.00042465,30]
[398347628,1765538158164,-588.23,0.00042465,30]
[398347629,1765538158175,-500.0,0.00042465,30]
[398347630,1765538158187,-1747.95,0.00042465,30]
[398347631,1765538158198,-763.9,0.00042465,30]
[398347632,1765538158209,-818.9,0.00042465,30]
[398347633,1765538158221,-972.17,0.00042465,30]
[398347634,1765538158232,-573.6,0.00042465,30]
[398347635,1765538158242,-556.13,0.00042465,30]
[398347636,1765538158253,-666.96,0.00042465,30]
[398347637,1765538158263,-515.36001508,0.00042465,30]
[398347638,1765538158274,-500.0,0.00042465,30]
[398347639,1765538158285,-1283.05,0.00042465,30]
[398347640,1765538158296,-798.2,0.00042465,30]
[398347641,1765538158307,-6586.39,0.00042465,30]
[398347642,1765538158317,-989.92,0.00042465,30]
[398347643,1765538158328,-502.68,0.00042465,30]
[398347644,1765538158339,-500.0,0.00042465,30]
[398347645,1765538158350,-500.0,0.00042465,30]
[398347646,1765538158360,-709.01,0.00042465,30]
[398347647,1765538158371,-438.86282672,0.00042465,30]
[398347648,1765538158382,-1180.74,0.00042465,30]
[398347649,1765538158392,-529.51,0.00042465,30]
[398347650,1765538158402,-589.52,0.00042465,30]
[398347651,1765538158413,-500.0,0.00042465,30]
[398347652,1765538158423,-500.0,0.00042465,30]
[398347653,1765538158433,-720.32,0.00042465,30]
[398347654,1765538158443,-509.99,0.00042465,30]
[398347655,1765538158453,-752.38,0.00042465,30]
[398347656,1765538158463,-500.0,0.00042465,30]
[398347657,1765538158474,-500.0,0.00042465,30]
[398347658,1765538158483,-500.0,0.00042465,30]
[398347659,1765538158494,-899.81,0.00042465,30]
[398347660,1765538158504,-600.80091826,0.00042465,30]
[398347661,1765538158514,-634.12,0.00042465,30]
[398347662,1765538158524,-1738.8,0.00042465,30]
[398347663,1765538158534,-500.0,0.00042465,30]
[398347664,1765538158544,-622.13,0.00042465,30]
[398347665,1765538158554,-10008.33,0.00042465,30]
[398347666,1765538158565,-1816.12,0.00042465,30]
[398347667,1765538158577,-1222.19,0.00042465,30]
[398347668,1765538158587,-500.0,0.00042465,30]
[398347669,1765538158598,-614.15,0.00042465,30]
[398347670,1765538158608,-853.5,0.00042465,30]
[398347671,1765538158619,-506.67,0.00042465,30]
[398347672,1765538158629,-867.61,0.00042465,30]
[398347673,1765538158640,-1730.62,0.00042465,30]
[398347674,1765538158650,-294.06735917,0.00042465,30]
[398347675,1765538158660,-500.0,0.00042465,30]
[398347676,1765538158670,-642.79,0.00042465,30]
[398347677,1765538158680,-2044.69,0.00042465,30]
[398347678,1765538158691,-5043.62,0.00042465,30]
[398347679,1765538158701,-1215.55,0.00042465,30]
[398347680,1765538158711,-500.0,0.00042465,30]
[398347681,1765538158722,-500.0,0.00042465,30]
[398347682,1765538158732,-500.0,0.00042465,30]
[398347683,1765538158742,-1545.49,0.00042465,30]
[398347684,1765538158753,-660.88,0.00042465,30]
[398347685,1765538158763,-1589.48,0.00042465,30]
[398347686,1765538158774,-628.02,0.00042465,30]
[398347687,1765538158784,-626.53,0.00042465,30]
[398347688,1765538158795,-602.06,0.00042465,30]
[398347689,1765538158806,-840.42,0.00042465,30]
[398347690,1765538158816,-699.47,0.00042465,30]
[398347691,1765538158827,-905.19,0.00042465,30]
[398347692,1765538158837,-752.57,0.00042465,30]
[398347693,1765538158848,-2585.93,0.00042465,30]
[398347694,1765538158858,-789.34,0.00042465,30]
[398347695,1765538158868,-3440.78,0.00042465,30]
[398347696,1765538158878,-563.79,0.00042465,30]
[398347697,1765538158890,-571.37,0.00042465,30]
[398347698,1765538158902,-500.54,0.00042465,30]
[398347699,1765538158913,-500.0,0.00042465,30]
[398347700,1765538158923,-500.0,0.00042465,30]
[398347701,1765538158933,-509.62,0.00042465,30]
[398347702,1765538158944,-669.04,0.00042465,30]
[398347703,1765538158954,-3771.23,0.00042465,30]
[398347704,1765538158977,-813.18,0.00042465,30]
[398347705,1765538158988,-500.0,0.00042465,30]
[398347706,1765538158999,-1179.73,0.00042465,30]
[398347707,1765538159010,-1235.8,0.00042465,30]
[398347708,1765538159021,-500.0,0.00042465,30]
[398347709,1765538159032,-1360.54,0.00042465,30]
[398347710,1765538159043,-604.12,0.00042465,30]
[398347711,1765538159054,-500.0,0.00042465,30]
[398347712,1765538159066,-1586.65,0.00042465,30]
[398347713,1765538159812,-972.77,0.00042465,30]
[398347714,1765538159822,-500.0,0.00042465,30]
[398347715,1765538159832,-500.0,0.00042465,30]
[398347716,1765538159842,-500.0,0.00042465,30]
[398347717,1765538159852,-4363.05,0.00042465,30]
[398347718,1765538159863,-731.82,0.00042465,30]
[398347719,1765538159873,-1625.02,0.00042465,30]
[398347720,1765538159883,-500.0,0.00042465,30]
[398347721,1765538159893,-500.0,0.00042465,30]
[398347722,1765538159906,-500.0,0.00042465,30]
[398347723,1765538159916,-1418.58,0.00042465,30]
[398347724,1765538159926,-500.0,0.00042465,30]
[398347725,1765538159936,-805.19,0.00042465,30]
[398347726,1765538159946,-500.0,0.00042465,30]
[398347727,1765538159955,-1679.93,0.00042465,30]
[398347728,1765538159965,-11739.26,0.00042465,30]
[398347729,1765538159975,-510.13,0.00042465,30]
[398347730,1765538159984,-1704.19,0.00042465,30]
[398347731,1765538159995,-878.65,0.00042465,30]
[398347732,1765538160005,-619.07,0.00042465,30]
[398347733,1765538160014,-2892.66,0.00042465,30]
[398347734,1765538160024,-500.0,0.00042465,30]
[398347735,1765538160034,-500.0,0.00042465,30]
[398347736,1765538160043,-1899.29,0.00042465,30]
[398347737,1765538160053,-500.0,0.00042465,30]
[398347738,1765538160063,-1019.28,0.00042465,30]
[398347739,1765538160073,-500.0,0.00042465,30]
[398347740,1765538160083,-1418.57,0.00042465,30]
[398347741,1765538160093,-621.25227196,0.00042465,30]
[398347742,1765538160103,-500.0,0.00042465,30]
[398347743,1765538160114,-736.31,0.00042465,30]
[398347744,1765538160124,-803.38,0.00042465,30]
[398347745,1765538160133,-522.15,0.00042465,30]
[398347746,1765538160143,-346.81995977,0.00042465,30]
[398347747,1765538160153,-1055.47,0.00042465,30]
[398347748,1765538160163,-694.39,0.00042465,30]
[398347749,1765538160172,-1480.3,0.00042465,30]
[398347750,1765538160182,-1529.14,0.00042465,30]
[398347751,1765538160191,-1887.69,0.00042465,30]
[398347752,1765538160201,-500.0,0.00042465,30]
[398347753,1765538160216,-1537.38,0.00042465,30]
[398347754,1765538160226,-814.49,0.00042465,30]
[398347755,1765538160235,-500.0,0.00042465,30]
[398347756,1765538160245,-878.0,0.00042465,30]
[398347757,1765538160255,-542.52,0.00042465,30]
[398347758,1765538160266,-500.0,0.00042465,30]
[398347759,1765538160276,-1609.53,0.00042465,30]
[398347760,1765538160286,-1220.84,0.00042465,30]
[398347761,1765538160296,-1987.44,0.00042465,30]
[398347762,1765538160306,-500.0,0.00042465,30]
[398347763,1765538160317,-994.63,0.00042465,30]
[398347764,1765538160327,-1330.17,0.00042465,30]
[398347765,1765538160337,-1382.15,0.00042465,30]
[398347766,1765538160347,-466.92152431,0.00042465,30]
[398347767,1765538160358,-1159.62,0.00042465,30]
[398347768,1765538160367,-1136.89,0.00042465,30]
[398347769,1765538160378,-556.58,0.00042465,30]
[398347770,1765538160387,-9826.53,0.00042465,30]
[398347771,1765538160398,-972.17,0.00042465,30]
[398347772,1765538160408,-500.0,0.00042465,30]
[398347773,1765538160418,-731.37,0.00042465,30]
[398347774,1765538160427,-1614.96,0.00042465,30]
[398347775,1765538160437,-186.00302486,0.00042465,30]
[398347776,1765538160447,-4738.09,0.00042465,30]
[398347777,1765538160457,-1327.17,0.00042465,30]
[398347778,1765538160467,-500.0,0.00042465,30]
[398347779,1765538160476,-3631.76,0.00042465,30]
[398347780,1765538160486,-500.0,0.00042465,30]
[398347781,1765538160496,-223.04724772,0.00042465,30]
[398347782,1765538160507,-500.0,0.00042465,30]
[398347783,1765538160517,-963.98,0.00042465,30]
[398347784,1765538160527,-634.95,0.00042465,30]
[398347785,1765538160537,-3329.8,0.00042465,30]
[398347786,1765538160547,-1124.07,0.00042465,30]
[398347787,1765538160557,-876.92,0.00042465,30]
[398347788,1765538160567,-500.0,0.00042465,30]
[398347789,1765538160578,-500.0,0.00042465,30]
[398347790,1765538160587,-500.0,0.00042465,30]
[398347791,1765538160597,-613.85,0.00042465,30]
[398347792,1765538160607,-705.22,0.00042465,30]
[398347793,1765538160615,-601.44,0.00042465,30]
[398347794,1765538160624,-680.86,0.00042465,30]
[398347795,1765538160632,-1255.36,0.00042465,30]
[398347796,1765538160640,-500.0,0.00042465,30]
[398347797,1765538160651,-500.0,0.00042465,30]
[398347798,1765538160661,-757.92,0.00042465,30]
[398347799,1765538160672,-976.99,0.00042465,30]
[398347800,1765538160682,-681.9,0.00042465,30]
[398347801,1765538160692,-766.68,0.00042465,30]
[398347802,1765538160703,-500.0,0.00042465,30]
[398347803,1765538160712,-820.89,0.00042465,30]
[398347804,1765538160723,-1425.77,0.00042465,30]
[398347805,1765538160734,-2237.4,0.00042465,30]
[398347806,1765538160743,-673.29,0.00042465,30]
[398347807,1765538160758,-574.67,0.00042465,30]
[398347808,1765538160768,-1020.61,0.00042465,30]
[398347809,1765538160778,-500.0,0.00042465,30]
[398347810,1765538160788,-558.5,0.00042465,30]
[398347811,1765538160799,-749.57,0.00042465,30]
[398347812,1765538160810,-500.0,0.00042465,30]
[398347813,1765538160820,-1224.23,0.00042465,30]
[398347814,1765538160830,-628.4,0.00042465,30]
[398347815,1765538160840,-1487.24,0.00042465,30]
[398347816,1765538160851,-500.0,0.00042465,30]
[398347817,1765538160862,-500.0,0.00042465,30]
[398347818,1765538160873,-160.62986918,0.00042465,30]
[398347819,1765538160883,-643.83,0.00042465,30]
[398347820,1765538160898,-1267.76,0.00042465,30]
[398347821,1765538160908,-554.79,0.00042465,30]
[398347822,1765538160919,-500.13,0.00042465,30]
[398347823,1765538160929,-543.72,0.00042465,30]
[398347824,1765538160941,-500.0,0.00042465,30]
[398347825,1765538160951,-1502.85,0.00042465,30]
[398347826,1765538160962,-901.37,0.00042465,30]
[398347827,1765538160974,-865.46,0.00042465,30]
[398347828,1765538160984,-1483.56,0.00042465,30]
[398347829,1765538160994,-2056.86,0.00042465,30]
[398347830,1765538161004,-598.84,0.00042465,30]
[398347831,1765538161014,-500.0,0.00042465,30]
[398347832,1765538161024,-500.0,0.00042465,30]
[398347833,1765538161034,-500.0,0.00042465,30]
[398347834,1765538161044,-2287.8,0.00042465,30]
[398347835,1765538161055,-500.0,0.00042465,30]
[398347836,1765538161065,-555.94,0.00042465,30]
[398347837,1765538161075,-868.9,0.00042465,30]
[398347838,1765538161086,-2439.55,0.00042465,30]
[398347839,1765538161096,-2828.46,0.00042465,120]
[398347840,1765538161106,-3289.05,0.00042465,30]
[398347841,1765538161116,-5959.38536385,0.00042465,30]
[398347842,1765538161126,-1876.03,0.00042465,30]
[398347843,1765538161136,-932.972515,0.00042465,30]
[398347844,1765538161146,-168.15043,0.00042465,30]
[398347845,1765538161155,-1953.93417,0.00042465,30]
[398347846,1765538161166,-1767.482813,0.00042465,30]
[398347847,1765538161176,-171.577909,0.00042465,30]
[398347848,1765538161186,-1310.696547,0.00042465,30]
[398347849,1765538161197,-1000.0,0.00042465,120]
[398347850,1765538161207,-1014.43,0.00042465,30]
[398347851,1765538161217,-1000.0,0.00042465,30]
[398347852,1765538161227,-352.09,0.00042465,2]
[398347853,1765538161236,-645.54,0.00042465,30]
[398347854,1765538161246,-500.0,0.00042465,30]
[398347855,1765538161256,-523.99,0.00042465,120]
[398347856,1765538161266,-1994.45,0.00042465,30]
[398347857,1765538161276,-2057.12,0.00042465,30]
[398347858,1765538161286,-531.0,0.00042466,120]
[398347859,1765538161295,-1000.0,0.00042466,2]
[398347860,1765538161310,-1000.0,0.00042466,60]
[398347861,1765538161320,-800.0,0.00042466,60]
[398347862,1765538161330,-14619782.24423277,0.00042477,7]
[398347863,1765538161341,-2322854.82214014,0.00042477,7]
[398347864,1765538161350,-19893234.59424366,0.00042477,7]
[398347865,1765538161360,-1083.42005081,0.00042477,2]
[398347866,1765538161370,-7761879.23631955,0.00042477,7]
[398347867,1765538161380,-4078772.12061001,0.00042477,7]
[398347868,1765538161390,-3899619.58535562,0.00042477,7]
[398347869,1765538161399,-1157906.27804228,0.00042477,7]
[398347870,1765538161410,-18078550.80047151,0.00042477,7]
[398347871,1765538161419,-2532364.28413124,0.00042477,7]
[398347872,1765538161429,-2882376.85489741,0.00042477,7]
[398347873,1765538161439,-1098400.71325244,0.00042477,7]
[398347874,1765538163985,-897391.42752125,0.00042478,7]
[398347875,1765538163997,-16398.33709165,0.00042478,7]
[398347876,1765538164056,-3860.09243218,0.00035438,2]
[398347877,1765538164066,-1104.20435816,0.00041096,120]
[398347878,1765538164079,-169.22977684,0.00041096,120]
[398347879,1765538164089,-330.77022316,0.00042478,7]
[398347880,1765538164100,-869.29227437,0.00042478,7]
[398347881,1765538164111,-1338.67363608,0.00042478,7]
[398347882,1765538164122,-1169.3192,0.00042478,7]
[398347916,1765538479330,156.35,0.00013699,2]
[398347950,1765538708447,8687.40457273,0.00018,2]
[398347963,1765538837593,258.78251248,0.000101,2]
[398347969,1765538874147,5000.0,0.00015,2]
[398347971,1765538881548,166.66,0.00021964,30]
[398347972,1765538881753,166.66,0.00022391,30]
[398347975,1765538904299,4741.21748752,0.00015,2]
[398347976,1765538904319,7315.48876641,0.00015,2]
[398347978,1765538922589,2684.51123359,0.00015,2]
[398347979,1765538922609,727.72697027,0.00015,2]
[398348011,1765539032244,-879.0,0.00015999,2]
[398348012,1765539032255,-946.67392952,0.00015999,2]
[398348013,1765539032268,-253.32607048,0.00015999,2]
[398348014,1765539032277,-214.18796093,0.00015999,2]
[398348015,1765539032299,-85.81203907,0.00015999,2]
[398348016,1765539032308,-12289.43824732,0.00016,2]
[398348017,1765539032320,-10662.12286718,0.00016,2]
[398348018,1765539032330,-4501.73064876,0.00016,2]
[398348019,1765539032354,-500.0,0.00016,2]
[398348020,1765539032365,-1932.135623,0.00016,2]
[398348021,1765539032377,-6505.90959998,0.00016,2]
[398348022,1765539032412,-3753.07156661,0.00016,2]
[398348023,1765539032424,-7384.86883864,0.00016,2]
[398348024,1765539032435,-440.56810984,0.00016,2]
[398348025,1765539032447,-5879.39187,0.00016,2]
[398348026,1765539032461,-510.0,0.00016,2]
[398348027,1765539032471,-1650.0,0.00016,2]
[398348028,1765539032483,-18441.4,0.00016,2]
[398348056,1765539038269,-567.81323664,0.00016,2]
[398348057,1765539038427,-1887.06186291,0.00016,2]
[398348157,1765539040375,-14026.50233629,0.00016,2]
[398348158,1765539040387,-1557.38467929,0.00016,2]
[398348159,1765539040399,-12541.95024179,0.00016,2]
[398348160,1765539040433,-2410.91235588,0.00016,2]
[398348161,1765539040442,-234.59599703,0.00016999,2]
[398348162,1765539040451,-83969.39185265,0.00017,2]
[398348163,1765539040460,-300.0,0.00017492,2]
[398348164,1765539040469,-1680.0,0.0001758,2]
[398348165,1765539040478,-34319.4922259,0.000179,2]
[398348166,1765539040493,-2577.14004856,0.000179,2]
[398348167,1765539040501,-638.68432968,0.000179,2]
[398348168,1765539040510,-7598.63524355,0.000179,2]
[398348169,1765539040519,-722.30598394,0.000179,2]
[398348170,1765539040528,-500.0,0.00017999,2]
[398348171,1765539040537,-1127038.604735,0.00018,2]
[398348183,1765539043596,-1018.67375131,0.00018,2]
[398348184,1765539043608,-378959.36328397,0.00018,2]
[398348185,1765539043619,-112899.18170598,0.00018,2]
[398348191,1765539046647,-32406.097811,0.00018,2]
[398348279,1765540006541,1014.74,0.00024658,30]
[398348314,1765540231425,-263.16412715,0.000162,2]
[398348315,1765540231434,-158.92668608,0.000162,2]
[398348316,1765540231444,-150.0,0.000162,2]
[398348317,1765540231453,-150.0,0.000162,2]
[398348318,1765540231463,-155.78,0.0001626,2]
[398348319,1765540231473,-1009.74918677,0.00016788,2]
[398348320,1765540231575,-255.31938989,0.00016788,2]
[398348321,1765540231586,-1794.98142334,0.00016788,2]
[398348322,1765540231595,-300.0,0.00017819,2]
[398348323,1765540231605,-300.0,0.00017819,2]
[398348324,1765540231614,-1200.0,0.00017819,2]
[398348325,1765540231623,-5112.53036941,0.0001782,3]
[398348326,1765540231632,-250.0,0.0001782,2]
[398348327,1765540231642,-243.3385266,0.0001782,2]
[398348328,1765540231651,-1901.44003002,0.000179,2]
[398348329,1765540231661,-489.718,0.000179,2]
[398348330,1765540231670,-378.07151166,0.000179,2]
[398348332,1765540231679,-8193.41708655,0.000179,2]
[398348333,1765540231689,-798.3554121,0.000179,2]
[398348334,1765540231698,-3438.75276831,0.000179,2]
[398348335,1765540231708,-722.30598394,0.000179,2]
[398348336,1765540231717,-1448.782824,0.000179,2]
[398348337,1765540231727,-2756.881295,0.000179,2]
[398348338,1765540231737,-500.0,0.00017999,2]
[398348339,1765540231747,-500.0,0.00017999,2]
[398348340,1765540231757,-500.0,0.00017999,2]
[398348341,1765540231766,-500.0,0.00017999,2]
[398348342,1765540231776,-500.0,0.00017999,2]
[398348343,1765540231786,-500.0,0.00017999,2]
[398348344,1765540231796,-500.0,0.00017999,2]
[398348345,1765540231806,-333.30232116,0.00017999,2]
[398348346,1765540231815,-500.0,0.00017999,2]
[398348347,1765540231824,-500.0,0.00017999,2]
[398348348,1765540231834,-500.0,0.00017999,2]
[398348349,1765540231843,-500.0,0.00017999,2]
[398348350,1765540231852,-500.0,0.00017999,2]
[398348351,1765540231861,-500.0,0.00017999,2]
[398348352,1765540231871,-500.0,0.00017999,2]
[398348353,1765540231881,-500.0,0.00017999,2]
[398348354,1765540231891,-500.0,0.00017999,2]
[398348355,1765540231900,-500.0,0.00017999,2]
[398348356,1765540231910,-500.0,0.00017999,2]
[398348357,1765540231919,-297.97121463,0.00017999,2]
[398348358,1765540231928,-500.0,0.00017999,2]
[398348359,1765540231937,-506.13624996,0.00017999,2]
[398348360,1765540231947,-500.0,0.00017999,2]
[398348361,1765540231956,-500.0,0.00017999,2]
[398348362,1765540231966,-336.52755762,0.00017999,2]
[398348363,1765540231975,-500.0,0.00017999,2]
[398348364,1765540231985,-500.0,0.00017999,2]
[398348365,1765540231994,-500.0,0.00017999,2]
[398348366,1765540232003,-500.0,0.00017999,2]
[398348367,1765540232013,-631.11009771,0.00017999,2]
[398348368,1765540232024,-208.13240735,0.00018,2]
[398348369,1765540232034,-2142.51713934,0.00018,2]
[398348370,1765540232047,-6717.8753716,0.00018,2]
[398348371,1765540232063,-543.31058992,0.00018,2]
[398348372,1765540232074,-1295.49444711,0.00018,2]
[398348400,1765540239742,-365.33712246,0.000179,2]
[398348402,1765540239752,-1138710.03321827,0.00018,2]
[398348418,1765540242714,-406652.91277042,0.00018,2]
[398348419,1765540242730,-4473.55240388,0.00018,2]
[398348420,1765540242742,-451.98416731,0.00018,2]
[398348421,1765540242767,-658.769994,0.00018,2]
[398348422,1765540242821,-108258.31408894,0.00018,2]
[398348424,1765540245430,-7576.76425133,0.00018,2]
[398348425,1765540245484,-4588.18051952,0.00018,2]
[398348426,1765540245799,-13861.54804547,0.00018,2]
[398348477,1765540596984,577.97618516,0.00025,120]
[398348505,1765540834130,-472.12675828,0.000175,2]
[398348506,1765540834343,-293.74081488,0.000175,2]
[398348507,1765540834379,-454.5596313,0.000175,2]
[398348508,1765540834424,-279.57279554,0.000175,2]
[398348509,1765540834453,-250.0,0.000175,2]
[398348510,1765540834479,-83.83053271,0.000175,2]
[398348511,1765540834579,-214.16946729,0.000175,2]
[398348512,1765540834605,-285.83053271,0.000175,2]
[398348513,1765540834675,-160.4177803,0.000175,2]
[398348586,1765541319131,158.0,0.00013699,2]
[398348588,1765541330670,1007.39,0.00025,30]
[398348628,1765541431864,-250.0,0.00017,2]
[398348630,1765541431874,-132.35999,0.000175,2]
[398348632,1765541431885,-421.39169699,0.000175,2]
[398348634,1765541431895,-90.32076615,0.00017517,2]
[398348637,1765541431906,-1129.80363385,0.00017517,2]
[398348639,1765541431917,-1186.19636615,0.00017539,2]
[398348640,1765541431940,-329.24117934,0.00017539,2]
[398348641,1765541431957,-58.44851809,0.00017539,2]
[398348642,1765541431966,-203.41976557,0.00017594,2]
[398348643,1765541431976,-365.92163733,0.0001779,2]
[398348644,1765541431986,-250.0,0.000178,2]
[398348645,1765541431996,-365.92163733,0.00017845,2]
[398348646,1765541432005,-300.0,0.00017889,2]
[398348647,1765541432014,-1200.0,0.00017889,2]
[398348648,1765541432024,-752.1408534,0.0001789,2]
[398348649,1765541432040,-4621.7091466,0.0001789,2]
[398348650,1765541432049,-121.54969876,0.000179,2]
[398348651,1765541432060,-244.37193857,0.000179,2]
[398348652,1765541432069,-504.79853385,0.000179,2]
[398348653,1765541432079,-2925.47906363,0.000179,2]
[398348654,1765541432093,-365.33712246,0.000179,2]
[398348655,1765541432102,-2741.1795008,0.000179,2]
[398348656,1765541432112,-459.15286162,0.00017989,2]
[398348657,1765541432121,-164.21,0.0001799,2]
[398348658,1765541432131,-1000.0,0.00017998,2]
[398348659,1765541432140,-588.16,0.00017998,2]
[398348660,1765541432149,-255.0,0.00017998,2]
[398348661,1765541432159,-500.0,0.00017998,2]
[398348662,1765541432168,-225.79451526,0.00017998,2]
[398348663,1765541432177,-500.0,0.00017998,2]
[398348664,1765541432187,-500.0,0.00017998,2]
[398348665,1765541432196,-500.0,0.00017998,2]
[398348666,1765541432206,-500.0,0.00017998,2]
[398348667,1765541432215,-500.0,0.00017998,2]
[398348668,1765541432226,-500.0,0.00017998,2]
[398348669,1765541432235,-500.0,0.00017998,2]
[398348670,1765541432245,-230.74235974,0.00017998,2]
[398348671,1765541432259,-617.17397353,0.00017998,2]
[398348672,1765541432268,-36781.6949623,0.00017999,2]
[398348673,1765541432277,-500.0,0.00017999,2]
[398348674,1765541432287,-483.74,0.00017999,2]
[398348675,1765541432296,-500.0,0.00017999,2]
[398348676,1765541432307,-574.19776068,0.00017999,2]
[398348677,1765541432316,-3062.4997539,0.00017999,2]
[398348678,1765541432326,-500.0,0.00017999,2]
[398348679,1765541432336,-10234.4969775,0.00017999,2]
[398348680,1765541432346,-500.0,0.00017999,2]
[398348681,1765541432355,-500.0,0.00017999,2]
[398348682,1765541432364,-500.0,0.00017999,2]
[398348683,1765541432374,-616.47288829,0.00017999,2]
[398348684,1765541432383,-1785.305589,0.00017999,2]
[398348685,1765541432392,-500.0,0.00017999,2]
[398348686,1765541432402,-500.0,0.00017999,2]
[398348687,1765541432411,-333.2445503,0.00017999,2]
[398348688,1765541432420,-235.56929034,0.00017999,2]
[398348689,1765541432430,-580.32553622,0.00018,2]
[398348690,1765541432439,-507243.82947681,0.00018,2]
[398348691,1765541432451,-20790.61776905,0.00018,2]
[398348692,1765541432462,-11073.79262155,0.00018,2]
[398348693,1765541432474,-38543.86912064,0.00018,2]
[398348694,1765541432485,-1594.4736441,0.00018,2]
[398348695,1765541432495,-1292.2457146,0.00018,2]
[398348696,1765541432507,-332.76980836,0.00018,2]
[398348698,1765541437625,-500.0,0.00017999,2]
[398348699,1765541437638,-1380.5048212,0.00017999,2]
[398348700,1765541437647,-138028.95404197,0.00018,2]
[398348701,1765541437659,-698.00403993,0.00018,2]
[398348702,1765541437670,-3517.13058712,0.00018,2]
[398348703,1765541437681,-1045.80767326,0.00018,2]
[398348704,1765541437696,-2256.70555665,0.00018,2]
[398348705,1765541437707,-7977.64667931,0.00018,2]
[398348706,1765541437719,-1702.04588553,0.00018,2]
[398348707,1765541437733,-9911.88097392,0.00018,2]
[398348708,1765541437745,-3557.83562371,0.00018,2]
[398348709,1765541437756,-579.18106974,0.00018,2]
[398348710,1765541437767,-2102.45319473,0.00018,2]
[398348717,1765541439682,-373063.37185324,0.00018,2]
[398348718,1765541439736,-2463.33,0.00018,2]
[398348720,1765541439747,-81931.44701985,0.00018,2]
[398348721,1765541439792,-5778.48460137,0.00018,2]
[398348722,1765541439803,-838.48,0.00018,2]
[398348723,1765541439963,-432703.30090004,0.00018,2]
[398348724,1765541439975,-375.16859773,0.00018,2]
[398348725,1765541439995,-1141114.89034073,0.00018,2]
[398348734,1765541442846,-4084.03678085,0.00018,2]
[398348735,1765541442899,-350140.0,0.00018,2]
[398348767,1765541445638,-2174.34000001,0.00018,2]
[398348779,1765541518344,1149.0,0.00025,30]
[398348800,1765541818083,1896.39995583,0.00025,120]
[398348888,1765542416228,3278.10282314,0.000162,5]
[398348889,1765542416253,1721.89717686,0.000162,5]
[398348917,1765542614527,-1200.0,0.00016589,2]
[398348918,1765542614551,-8072.27302973,0.0001659,2]
[398348919,1765542623238,-1876.32697027,0.0001659,2]
[398348920,1765542623260,-300.0,0.00016744,2]
[398348921,1765542623282,-300.0,0.00016744,2]
[398348922,1765542623303,-250.0,0.00016745,2]
[398348923,1765542623323,-2576.45,0.00016783,2]
[398348924,1765542623343,-4697.22302973,0.00016867,2]
[398348930,1765542631714,-2500.0,0.00016667,2]
[398348931,1765542631724,-1111.11039564,0.00016746,2]
[398348932,1765542631773,-1123.04045911,0.00016746,2]
[398348933,1765542631785,-265.84914525,0.00016746,2]